bitfinex/quotes_ETHUSD_20251107
["timestamp","ask_amount","ask_price","bid_price","bid_amount"]
[1762520284171,0.1019,3228.5,3227.0,3.50429321]
[1762520284373,0.1019,3228.5,3227.2,0.405504]
[1762520285620,0.48623002,3228.2,3227.2,0.405504]
[1762520286309,0.48623002,3228.2,3227.2,3.99986278]
[1762520286517,0.48623002,3228.2,3227.2,0.901204]
[1762520286671,0.58813002,3228.2,3227.2,0.405504]
[1762520286900,0.58813002,3228.2,3226.9,0.1877]
[1762520286901,0.1019,3228.1,3226.9,4.0277]
[1762520287239,0.1019,3228.1,3227.0,0.808274]
[1762520287740,0.48623002,3228.2,3227.2,0.405504]
[1762520287941,0.48623002,3228.2,3227.3,0.02667969]
[1762520288107,0.48623002,3228.2,3227.4,0.35307708]
[1762520288302,0.48623002,3228.2,3227.5,0.02667646]
[1762520288543,0.515804,3229.7,3227.5,0.02667646]
[1762520288544,0.1019,3229.4,3228.1,0.6504]
[1762520288710,0.48616295,3228.9,3227.6,0.4957]
[1762520289215,0.002,3229.5,3227.8,0.405504]
[1762520289402,0.1019,3229.0,3227.1,0.1814]
[1762520289603,0.1019,3229.0,3227.6,0.405504]
[1762520290130,0.1019,3229.0,3227.6,0.4957]
[1762520290813,1.361612,3229.0,3227.2,0.901204]
[1762520291330,0.1019,3228.9,3227.2,0.405504]
[1762520291518,0.4861551,3228.6,3227.3,0.4957]
[1762520292048,0.4861551,3228.6,3227.5,3.50382425]
[1762520292209,0.4861551,3228.6,3227.5,0.405504]
[1762520292543,0.4861551,3228.6,3227.4,0.3999859]
[1762520292544,0.1019,3228.5,3227.4,0.3999859]
[1762520292849,0.1019,3228.5,3227.4,0.4957]
[1762520293446,0.4861551,3228.6,3227.4,0.4957]
[1762520293621,0.4861551,3228.6,3227.5,3.50381861]
[1762520293946,0.1019,3228.5,3227.5,0.405504]
[1762520294239,0.1019,3228.5,3227.4,0.405504]
[1762520294672,0.03871887,3228.4,3227.3,3.84]
[1762520294833,0.1019,3228.5,3227.4,3.84]
[1762520295034,0.1019,3228.4,3227.4,3.84]
[1762520295230,0.1019,3228.4,3227.2,0.4957]
[1762520295471,0.1019,3228.4,3226.9,0.1877]
[1762520295633,0.03872006,3228.3,3226.9,0.69192328]
[1762520295847,1.259712,3228.3,3226.9,0.1877]
[1762520296169,0.1019,3228.2,3226.9,0.1877]
[1762520296689,0.1019,3228.2,3224.3,0.4957]
[1762520296690,0.1019,3228.2,3226.4,3.77650213]
[1762520296838,0.1019,3228.2,3226.4,0.6771]
[1762520297034,0.35823939,3228.5,3226.7,1.259712]
[1762520297261,0.4861551,3228.6,3227.3,3.0985007]
[1762520297462,0.4861551,3228.6,3227.7,0.405504]
[1762520297647,0.1019,3228.9,3227.8,3.09807468]
[1762520297855,0.1019,3229.2,3227.8,0.4957]
[1762520298048,0.1019,3229.2,3227.9,0.4957]
[1762520298581,0.1019,3229.0,3227.7,0.405504]
[1762520298758,0.1019,3229.0,3227.4,0.4957]
[1762520298936,0.1019,3229.0,3227.4,0.85512976]
[1762520299267,0.002,3228.5,3227.4,0.4957]
[1762520299468,0.0012,3228.5,3227.5,0.4957]
[1762520300291,0.1019,3228.4,3227.1,0.6771]
[1762520300443,0.1019,3228.4,3227.1,3.77579043]
[1762520300780,0.1019,3228.4,3227.2,0.4957]
[1762520300937,0.1019,3228.4,3227.2,0.87327904]
[1762520301137,0.1019,3228.4,3227.2,0.4957]
[1762520302588,0.1019,3228.4,3227.1,0.1814]
[1762520302993,0.03872006,3228.3,3227.1,0.1814]
[1762520303160,0.1019,3228.4,3226.9,0.001]
[1762520303361,0.1019,3228.3,3226.9,0.001]
[1762520303558,1.361612,3228.3,3226.9,0.001]
[1762520303797,1.259712,3227.8,3226.9,0.001]
[1762520304089,0.1019,3227.0,3226.9,0.001]
[1762520304484,0.1019,3227.7,3226.9,0.001]
[1762520305895,0.1019,3227.0,3226.9,0.001]
[1762520306893,0.1019,3227.4,3226.9,0.001]
[1762520307119,0.1019,3227.0,3226.9,0.001]
[1762520307464,0.2038,3227.0,3226.9,0.001]
[1762520308097,0.1019,3227.0,3226.9,0.001]
[1762520308297,1.361612,3227.7,3226.9,0.001]
[1762520308502,0.1019,3227.7,3226.9,0.001]
[1762520308707,0.1019,3227.6,3226.9,0.001]
[1762520308997,0.1019,3227.0,3226.9,0.001]
[1762520309361,0.2038,3227.0,3226.9,0.001]
[1762520310298,0.1019,3227.0,3226.9,0.001]
[1762520311195,0.58820347,3227.0,3226.9,0.001]
[1762520311779,0.1019,3227.0,3226.9,0.001]
[1762520313214,1.361612,3227.6,3226.9,0.001]
[1762520313590,0.1019,3227.6,3226.9,0.001]
[1762520314012,0.48627558,3227.8,3226.9,0.001]
[1762520314169,0.48627558,3227.8,3226.9,0.4967]
[1762520314707,0.48625107,3227.6,3226.9,0.4967]
[1762520315681,0.48625107,3227.6,3227.0,0.02669173]
[1762520316021,0.48625107,3227.6,3227.5,0.6548]
[1762520316308,0.58815107,3227.6,3226.9,3.001]
[1762520316511,0.58815107,3227.6,3226.9,3.36749]
[1762520316716,0.1019,3228.0,3226.9,3.83369]
[1762520317116,0.1019,3228.0,3227.0,0.4662]
[1762520317317,0.1019,3228.0,3227.1,0.1977]
[1762520318413,0.1019,3228.0,3226.9,3.36749]
[1762520318937,0.1019,3228.0,3226.9,3.001]
[1762520319429,6.38760109,3228.2,3226.9,0.001]
[1762520319430,5.33735109,3228.2,3226.9,0.001]
[1762520319722,0.03872246,3228.1,3226.9,0.001]
[1762520319921,0.48627536,3227.9,3226.9,0.001]
[1762520320328,0.03872486,3227.9,3226.9,0.001]
[1762520320692,0.405504,3228.1,3226.9,0.001]
[1762520321427,0.405504,3227.9,3226.9,0.001]
[1762520321929,1.259712,3228.1,3226.9,0.001]
[1762520321930,0.405504,3228.0,3226.9,0.001]
[1762520322094,0.404704,3228.0,3226.9,0.001]
[1762520322638,1.259712,3227.6,3226.9,0.001]
[1762520323190,0.48632118,3227.5,3226.9,0.001]
[1762520323395,0.97265029,3227.5,3226.9,0.001]
[1762520323839,1.01137995,3227.5,3226.9,0.001]
[1762520324142,0.97265029,3227.5,3226.9,0.001]
[1762520324942,0.44423486,3227.4,3226.9,0.001]
[1762520325251,1.259712,3227.1,3226.9,0.001]
[1762520327258,0.405504,3226.9,3226.2,0.001]
[1762520327449,1.259712,3226.6,3226.2,0.001]
[1762520328630,0.48632118,3227.5,3226.2,0.001]
[1762520329162,0.405504,3227.3,3226.2,0.001]
[1762520329463,0.1665216,3227.2,3226.2,0.001]
[1762520330269,6.38760109,3227.0,3226.2,0.001]
[1762520330482,1.29844886,3226.9,3226.2,0.001]
[1762520330847,1.259712,3226.9,3226.2,0.001]
[1762520331950,0.405504,3226.8,3226.2,0.001]
[1762520332676,1.259712,3226.9,3226.2,0.001]
[1762520333386,0.405504,3227.4,3226.2,0.001]
[1762520333387,0.03873806,3226.8,3226.2,0.001]
[1762520333598,0.405504,3226.8,3226.2,0.001]
[1762520333936,0.48640354,3226.9,3226.2,0.001]
[1762520334856,0.405504,3228.0,3226.2,0.001]
[1762520335049,0.405504,3227.9,3226.2,0.001]
[1762520335269,4.536712,3228.0,3226.2,0.4902]
[1762520335270,1.259712,3228.0,3226.2,0.4902]
[1762520335456,6.38760109,3228.2,3226.5,0.4902]
[1762520335457,1.259712,3228.1,3226.5,0.4902]
[1762520336151,6.38760109,3228.2,3226.5,0.4902]
[1762520336152,0.405504,3227.8,3226.5,0.4902]
[1762520336684,1.259712,3228.1,3226.5,0.4902]
[1762520337142,0.405504,3228.0,3226.5,0.4902]
[1762520337570,1.259712,3228.1,3226.5,0.4902]
[1762520337954,0.48634504,3227.7,3226.5,0.4902]
[1762520338167,0.48634504,3227.7,3226.5,0.001]
[1762520338366,0.03872846,3227.6,3226.5,0.001]
[1762520338862,1.665216,3227.5,3226.5,0.001]
[1762520340622,0.48634504,3227.7,3226.5,0.4902]
[1762520340623,0.48636093,3227.3,3226.5,0.4902]
[1762520343015,0.48636093,3227.3,3227.2,0.6682]
[1762520343204,0.48634504,3227.7,3227.2,0.6682]
[1762520343518,0.48634504,3227.7,3227.6,0.4719]
[1762520343679,0.002,3228.1,3227.6,0.4719]
[1762520343879,0.002,3228.1,3227.6,0.9611]
[1762520344399,0.002,3228.1,3227.2,0.1963]
[1762520344601,0.04072246,3228.1,3226.5,0.4902]
[1762520344808,0.405504,3228.0,3226.5,0.4902]
[1762520345007,0.404704,3228.0,3226.5,0.4902]
[1762520345206,6.38760109,3227.1,3226.5,0.001]
[1762520345404,1.76964009,3227.0,3226.5,0.001]
[1762520345790,1.259712,3226.9,3226.5,0.001]
[1762520346000,0.47119243,3227.0,3226.5,0.001]
[1762520346215,0.03873806,3226.8,3226.5,0.001]
[1762520346383,0.97298108,3226.9,3226.5,0.001]
[1762520347029,0.405504,3226.8,3226.5,0.001]
[1762520348303,0.97298108,3226.9,3226.5,0.001]
[1762520348304,0.48649023,3226.9,3226.5,0.001]
[1762520349399,0.97297394,3226.9,3226.5,0.001]
[1762520353459,0.97297394,3226.9,3226.8,0.4752]
[1762520353657,0.48648371,3226.9,3226.8,0.964]
[1762520353861,0.48648371,3226.9,3226.5,0.001]
[1762520354060,0.48648371,3226.9,3226.6,0.4888]
[1762520354271,0.48648371,3226.9,3226.8,0.4752]
[1762520354646,0.48648371,3226.9,3226.8,0.964]
[1762520356176,0.002,3228.1,3226.8,0.964]
[1762520356376,0.002,3228.1,3228.0,0.6602]
[1762520356766,0.002,3228.1,3228.0,1.149]
[1762520357780,0.002,3228.1,3228.0,0.6602]
[1762520357979,0.002,3228.1,3228.0,1.149]
[1762520358477,0.002,3228.1,3227.7,0.185]
[1762520358679,0.002,3228.1,3227.7,0.6738]
[1762520358983,0.002,3228.1,3227.7,0.185]
[1762520359154,0.002,3228.1,3227.4,0.185]
[1762520359554,0.04072246,3228.1,3227.1,0.185]
[1762520359867,0.002,3228.1,3227.1,0.185]
[1762520361180,0.002,3228.1,3226.2,0.001]
[1762520361181,0.03872366,3228.0,3226.2,0.001]
[1762520361345,0.04072246,3228.1,3226.6,0.4888]
[1762520361547,0.002,3228.1,3226.6,0.4888]
[1762520362796,0.48632371,3227.8,3226.6,0.4888]
[1762520363495,0.44423126,3227.7,3226.2,0.001]
[1762520363667,0.44423126,3227.7,3226.3,0.4888]
[1762520363867,0.405504,3227.7,3226.3,0.4888]
[1762520364085,4.80215772,3227.7,3226.2,0.001]
[1762520364288,0.405504,3227.6,3226.2,0.001]
[1762520364589,0.405504,3227.6,3226.1,0.18334]
[1762520364916,0.405504,3227.6,3226.1,0.67214]
[1762520365116,0.48632371,3227.8,3226.2,0.4888]
[1762520366000,0.48632371,3227.8,3226.2,3.58841285]
[1762520366303,0.48632371,3227.8,3226.3,0.37717529]
[1762520366519,0.48632371,3227.8,3227.7,0.6602]
[1762520366808,0.48632371,3227.8,3227.7,1.149]
[1762520366985,0.002,3228.1,3227.7,1.149]
[1762520367192,0.002,3228.1,3228.0,0.4752]
[1762520367784,0.0012,3228.1,3228.0,0.4752]
[1762520367994,0.0012,3228.1,3228.0,0.964]
[1762520369376,0.0012,3228.1,3228.0,0.4752]
[1762520369969,0.0012,3228.1,3227.7,0.6738]
[1762520370212,0.0012,3228.1,3227.8,0.4888]
[1762520370367,0.48746217,3228.1,3227.4,0.185]
[1762520370964,0.48746217,3228.1,3228.0,0.4752]
[1762520371267,0.48746217,3228.1,3228.0,0.964]
[1762520372202,0.48746217,3228.1,3227.4,0.185]
[1762520372365,0.48746217,3228.1,3227.5,0.4888]
[1762520372366,0.03872366,3228.0,3227.5,0.4888]
[1762520372698,0.48746217,3228.1,3227.5,0.4888]
[1762520374277,0.48746217,3228.1,3227.4,0.185]
[1762520374677,0.48746217,3228.1,3227.0,0.4888]
[1762520374915,0.48746217,3228.1,3226.1,3.43737839]
[1762520374916,0.44422766,3228.0,3226.7,0.4985]
[1762520375119,1.259712,3227.9,3226.7,0.4985]
[1762520375508,0.03872606,3227.8,3226.7,0.4985]
[1762520375819,1.259712,3227.9,3226.7,0.4985]
[1762520377020,1.259712,3227.9,3226.5,0.001]
[1762520377196,0.44423006,3227.8,3226.5,0.001]
[1762520380215,0.48639426,3227.5,3226.5,0.001]
[1762520380419,1.665216,3227.4,3226.5,0.001]
[1762520380618,0.48640098,3227.3,3226.5,0.001]
[1762520383226,1.70394686,3227.4,3226.5,0.001]
[1762520383610,0.48640359,3227.2,3226.5,0.001]
[1762520384316,0.48640359,3227.2,3227.1,0.6546]
[1762520384635,0.0012,3228.1,3227.1,0.6546]
[1762520384832,0.48633324,3227.7,3227.1,0.6546]
[1762520385532,0.48633324,3227.7,3227.1,1.1503]
[1762520386332,0.48633324,3227.7,3227.6,0.4917]
[1762520386538,0.0012,3228.1,3227.6,0.4917]
[1762520387030,0.0012,3228.1,3227.2,0.4957]
[1762520387735,0.03872486,3227.9,3227.2,0.4957]
[1762520388233,0.0012,3228.1,3227.2,0.4957]
[1762520390608,0.48560351,3228.0,3227.2,0.4957]
[1762520393634,0.48560351,3228.0,3227.9,0.4917]
[1762520394146,0.0012,3228.1,3227.9,0.9874]
[1762520394350,0.0012,3228.1,3228.0,0.4917]
[1762520394641,0.0012,3228.1,3228.0,0.9874]
[1762520396967,0.0012,3228.1,3227.6,0.4957]
[1762520397778,0.0012,3228.1,3227.4,0.4957]
[1762520400564,0.0012,3228.1,3227.1,0.182]
[1762520400565,0.03992246,3228.1,3227.1,0.182]
[1762520400737,0.0012,3228.1,3227.1,0.6777]
[1762520401171,0.0012,3228.1,3227.2,0.4957]
[1762520401671,0.0012,3228.1,3228.0,0.4917]
[1762520401868,0.0012,3228.1,3228.0,0.9874]
[1762520403872,0.0012,3228.1,3227.6,0.4957]
[1762520404034,0.0012,3228.1,3228.0,0.4917]
[1762520404444,0.0012,3228.1,3227.7,0.4957]
[1762520405139,0.0012,3228.1,3227.1,0.182]
[1762520405140,0.0012,3228.1,3227.4,0.4895]
[1762520406034,0.48741162,3228.1,3227.1,0.001]
[1762520406261,0.44422766,3228.0,3227.1,0.001]
[1762520406462,0.405504,3228.0,3227.1,0.001]
[1762520406637,0.48741162,3228.1,3227.1,0.1937]
[1762520406838,0.48741162,3228.1,3227.1,0.6832]
[1762520407552,0.48741162,3228.1,3227.1,0.001]
[1762520407879,1.665216,3227.9,3227.1,0.001]
[1762520408083,0.03872606,3227.8,3227.1,0.001]
[1762520408382,0.405504,3227.3,3227.1,0.001]
[1762520408541,0.44423726,3227.2,3227.1,0.001]
[1762520408744,0.405504,3227.2,3227.1,0.001]
[1762520408986,1.29844286,3227.4,3227.1,0.001]
[1762520408987,1.259712,3227.4,3227.1,0.001]
[1762520409187,0.405504,3227.3,3227.1,0.001]
[1762520409679,0.405504,3227.5,3227.1,0.001]
[1762520410063,0.405504,3227.3,3227.1,0.001]
[1762520411350,0.405504,3227.5,3227.1,0.001]
[1762520411551,0.405504,3227.3,3227.1,0.001]
[1762520412067,8.14992137,3227.2,3227.1,0.001]
[1762520413343,8.14912137,3227.2,3227.1,0.001]
[1762520414105,8.14912137,3227.2,3226.7,0.001]
[1762520414106,1.259712,3227.1,3226.7,0.001]
[1762520414244,7.74441737,3226.8,3226.7,0.001]
[1762520414446,1.259712,3226.8,3226.7,0.001]
[1762520416182,1.74614025,3226.8,3226.7,0.001]
[1762520416479,2.6768186,3226.8,3226.7,0.001]
[1762520417682,5.77586409,3226.8,3226.7,0.001]
[1762520417884,2.6768186,3226.8,3226.7,0.001]
[1762520418480,2.63808054,3226.8,3226.7,0.001]
[1762520419187,2.23257654,3226.8,3226.7,0.001]
[1762520419862,2.63808054,3226.8,3226.7,0.001]
[1762520420465,2.23257654,3226.8,3226.7,0.001]
[1762520420771,0.97286454,3226.8,3226.7,0.9432]
[1762520421182,0.48642825,3226.8,3226.7,0.4537]
[1762520421517,0.48642825,3226.8,3226.7,0.001]
[1762520422504,0.48642825,3226.8,3226.7,0.9432]
[1762520422705,0.48642825,3226.8,3226.7,0.4537]
[1762520422915,0.48642825,3226.8,3226.7,0.001]
[1762520423288,0.48642825,3226.8,3226.7,0.4537]
[1762520423492,0.48642825,3226.8,3226.7,0.9432]
[1762520424298,0.48642825,3226.8,3226.7,0.4537]
[1762520424818,0.48642825,3226.8,3226.7,0.9432]
[1762520425114,0.1683,3228.3,3226.7,0.9432]
[1762520425315,0.1683,3228.3,3226.8,0.4895]
[1762520426016,0.0012,3228.5,3226.8,0.4895]
[1762520426454,0.0012,3228.5,3228.0,0.4527]
[1762520426600,0.0012,3228.5,3226.9,3.45790275]
[1762520426803,0.0012,3228.5,3227.0,0.4895]
[1762520427004,0.0012,3228.5,3228.0,0.6454]
[1762520427440,0.0012,3228.5,3228.0,1.1349]
[1762520427741,0.0012,3228.5,3228.0,0.6454]
[1762520427940,0.0012,3228.5,3227.5,0.4895]
[1762520427941,1.261712,3228.4,3227.6,0.1927]
[1762520428305,1.261712,3228.4,3227.7,0.4895]
[1762520429749,1.261712,3228.4,3228.0,0.4527]
[1762520429750,0.002,3228.4,3228.0,0.4527]
[1762520430363,0.002,3228.4,3228.0,0.9422]
[1762520430715,0.002,3228.4,3227.6,0.1927]
[1762520430919,0.002,3228.4,3227.7,0.4895]
[1762520431427,0.002,3228.4,3227.3,0.6822]
[1762520431738,0.48744499,3228.1,3227.3,0.6822]
[1762520431943,0.48744499,3228.1,3228.0,0.4527]
[1762520432106,0.48744499,3228.1,3227.4,0.4895]
[1762520434048,0.48625148,3228.0,3227.4,0.4895]
[1762520434252,0.48744499,3228.1,3227.4,0.4895]
[1762520436204,0.48664499,3228.1,3227.4,0.4895]
[1762520436930,0.0004,3228.1,3227.4,0.4895]
[1762520438759,0.0004,3228.1,3228.0,0.4663]
[1762520439112,0.0004,3228.1,3228.0,0.9513]
[1762520439547,0.1024,3228.1,3227.5,0.485]
[1762520440145,0.0004,3228.1,3227.5,0.485]
[1762520440327,0.0004,3228.1,3227.3,0.1927]
[1762520440541,0.0004,3228.1,3227.4,0.479]
[1762520443437,0.447,3227.5,3226.8,0.479]
[1762520443634,0.03873086,3227.4,3226.8,0.479]
[1762520444150,0.03872846,3227.6,3226.8,0.479]
[1762520444312,0.1677,3227.7,3226.8,0.479]
[1762520444874,0.48627454,3227.5,3226.8,0.479]
[1762520445437,0.1677,3227.7,3226.8,0.479]
[1762520447362,0.0004,3228.1,3226.8,0.479]
[1762520447363,0.405904,3228.1,3227.6,0.4894]
[1762520447668,0.2697,3227.7,3227.0,0.1815]
[1762520449559,0.48629631,3227.6,3227.0,0.1815]
[1762520449937,0.48629631,3227.6,3226.7,0.001]
[1762520449938,0.1028,3227.1,3226.7,0.001]
[1762520450273,0.48631015,3227.5,3226.7,0.001]
[1762520450769,0.48631015,3227.5,3227.0,0.001]
[1762520451172,0.93311015,3227.5,3227.0,0.001]
[1762520451572,0.48631015,3227.5,3227.0,0.001]
[1762520451780,0.4468,3227.4,3227.0,0.001]
[1762520452577,0.1028,3227.1,3227.0,0.001]
[1762520452775,0.4468,3227.4,3227.0,0.001]
[1762520452974,0.1028,3227.1,3227.0,0.001]
[1762520453774,0.54465067,3227.1,3227.0,0.001]
[1762520454472,0.98888913,3227.1,3227.0,0.001]
[1762520454677,8.63178559,3227.1,3227.0,0.001]
[1762520454877,4.942216,3227.0,3226.7,0.001]
[1762520455078,0.409904,3226.8,3226.7,0.001]
[1762520455597,2.114916,3226.8,3226.7,0.001]
[1762520455775,0.855204,3226.8,3226.7,0.001]
[1762520456667,0.409904,3226.8,3226.7,0.001]
[1762520456885,2.15365406,3226.8,3226.7,0.001]
[1762520458991,2.15285406,3226.8,3226.7,0.001]
[1762520459294,0.0036,3226.8,3226.7,0.001]
[1762520459452,0.1028,3226.8,3226.7,0.001]
[1762520460799,1.07573554,3226.8,3226.7,0.001]
[1762520461154,0.58926794,3226.8,3226.7,0.001]
[1762520461597,1.47451,3226.8,3226.7,0.001]
[1762520461905,1.43577194,3226.8,3226.7,0.001]
[1762520463293,9.11740646,3226.8,3226.7,0.001]
[1762520463457,9.0786684,3226.8,3226.7,0.001]
[1762520464090,8.6376684,3226.8,3226.7,0.001]
[1762520464405,0.48646794,3226.8,3226.7,0.4904]
[1762520464559,0.58926794,3226.8,3226.7,0.001]
[1762520464765,8.2321644,3226.8,3226.7,0.001]
[1762520465070,9.0786684,3226.8,3226.7,0.001]
[1762520465583,1.259712,3226.8,3226.7,0.001]
[1762520465786,1.746195,3226.8,3226.7,0.001]
[1762520466521,2.493399,3226.8,3226.7,0.001]
[1762520467874,8.90118255,3226.8,3226.7,0.001]
[1762520468078,3.09914153,3226.7,3226.6,0.001]
[1762520468295,8.03445358,3226.6,3226.5,0.001]
[1762520468465,8.03445358,3226.6,3226.3,0.001]
[1762520468466,8.03454964,3226.5,3226.3,0.001]
[1762520468788,8.37624964,3226.5,3226.3,0.001]
[1762520469897,8.0346457,3226.4,3226.3,0.001]
[1762520470112,8.0346457,3226.4,3224.0,0.1815]
[1762520470113,3.09971792,3226.1,3224.5,0.4945]
[1762520470295,11.48981838,3226.1,3224.5,0.4945]
[1762520470620,3.10054531,3225.3,3224.0,0.1815]
[1762520470763,0.405504,3224.7,3224.0,0.1815]
[1762520471423,0.405504,3224.7,3223.9,0.001]
[1762520471424,1.665216,3224.4,3223.9,0.001]
[1762520471708,0.405504,3224.3,3223.9,0.001]
[1762520471908,0.33238442,3224.8,3224.0,0.4945]
[1762520471909,0.405504,3224.7,3224.0,0.4945]
[1762520472111,0.405504,3224.7,3224.2,0.4515]
[1762520472347,0.405504,3224.7,3224.0,0.4945]
[1762520472348,0.405504,3224.7,3224.1,0.1907]
[1762520473154,0.405504,3224.1,3223.9,0.001]
[1762520473652,0.405504,3224.3,3223.9,0.001]
[1762520473953,0.405504,3224.1,3223.9,0.001]
[1762520474265,0.48684142,3224.1,3224.0,0.4945]
[1762520474467,0.48684142,3224.1,3224.0,0.946]
[1762520474995,6.55738446,3225.5,3224.0,0.946]
[1762520475161,6.55738446,3225.5,3224.1,0.6852]
[1762520475448,0.48674812,3224.6,3224.2,0.4945]
[1762520475647,1.259712,3225.4,3224.2,0.4945]
[1762520475849,0.48675615,3224.6,3224.2,0.4945]
[1762520476042,0.48676365,3225.2,3224.2,0.4945]
[1762520476249,0.03875848,3225.1,3224.2,0.4945]
[1762520476436,0.48676365,3225.2,3224.2,0.4945]
[1762520476437,0.48677251,3224.6,3224.2,0.4945]
[1762520476636,0.405504,3225.0,3224.2,0.4945]
[1762520476835,0.89227979,3225.1,3224.2,0.4945]
[1762520477035,1.665216,3224.9,3224.1,0.1907]
[1762520477226,0.405504,3225.0,3224.2,0.4945]
[1762520477426,0.405504,3225.0,3224.1,0.1907]
[1762520477722,1.70397689,3224.9,3224.1,0.1907]
[1762520478324,1.665216,3224.9,3224.1,0.1907]
[1762520478532,1.665216,3224.9,3224.1,0.6852]
[1762520478746,0.405504,3224.8,3224.1,0.6852]
[1762520479411,0.405504,3224.8,3224.2,0.4945]
[1762520479821,0.405504,3224.8,3223.9,0.001]
[1762520480153,0.03876329,3224.7,3223.9,0.001]
[1762520480358,1.64017289,3224.9,3223.9,0.001]
[1762520480518,0.405504,3224.8,3223.9,0.001]
[1762520481118,0.747204,3224.8,3223.9,0.001]
[1762520481357,0.78596609,3224.8,3223.9,0.001]
[1762520481659,11.15013743,3224.0,3223.9,0.001]
[1762520481875,3.10197245,3223.8,3223.5,0.001]
[1762520482167,0.405504,3223.6,3223.5,0.001]
[1762520482331,1.259712,3224.6,3223.7,0.4515]
[1762520482538,0.405504,3224.5,3223.7,0.4515]
[1762520482856,0.405504,3224.5,3223.7,0.946]
[1762520483059,0.405504,3224.3,3223.7,0.946]
[1762520483260,0.97374686,3224.4,3223.8,0.4945]
[1762520483472,0.97374686,3224.4,3223.7,0.4515]
[1762520483969,0.97374686,3224.4,3223.7,0.946]
[1762520484327,0.97374686,3224.4,3223.7,0.4515]
[1762520484575,0.97374686,3224.4,3223.8,0.4945]
[1762520486033,0.405504,3224.3,3223.8,0.4945]
[1762520486263,0.97374686,3224.4,3224.3,0.6422]
[1762520486442,0.97374686,3224.4,3224.3,1.1367]
[1762520487354,0.97374686,3224.4,3224.0,0.1907]
[1762520488024,0.405504,3224.3,3224.0,0.1907]
[1762520488228,0.405504,3224.3,3223.6,0.001]
[1762520488729,0.97374686,3224.4,3224.2,0.6422]
[1762520489171,0.97374686,3224.4,3224.3,0.4515]
[1762520490069,0.97374686,3224.4,3224.3,0.946]
[1762520490661,0.4868738,3224.4,3224.3,0.946]
[1762520493847,0.4868738,3224.4,3224.3,0.97275727]
[1762520494053,0.002,3225.2,3224.4,0.946]
[1762520494278,0.002,3225.2,3224.8,0.4515]
[1762520494634,0.002,3225.2,3224.8,0.946]
[1762520499568,0.002,3225.2,3224.8,0.4697]
[1762520499771,0.002,3225.2,3224.5,0.4796]
[1762520500890,0.002,3225.2,3224.2,0.1907]
[1762520501090,0.002,3225.2,3224.3,0.4796]
[1762520502191,0.1762,3224.9,3224.2,0.1907]
[1762520503097,0.1762,3224.9,3224.1,0.1944]
[1762520503895,0.1762,3224.9,3224.2,0.4796]
[1762520503896,0.48677871,3224.8,3224.2,0.4796]
[1762520504682,0.48597871,3224.8,3224.2,0.4796]
[1762520505093,0.48597871,3224.8,3224.1,0.1944]
[1762520505497,0.002,3224.9,3224.1,0.1944]
[1762520505698,0.48678583,3224.7,3224.1,0.1944]
[1762520508188,0.48678583,3224.7,3224.6,0.4697]
[1762520508386,0.48678583,3224.7,3224.1,0.674]
[1762520508620,0.97356734,3224.7,3224.2,0.4796]
[1762520509818,0.97356734,3224.7,3224.6,0.4697]
[1762520510318,0.97356734,3224.7,3224.6,0.9493]
[1762520510695,0.97356734,3224.7,3224.2,0.4796]
[1762520512611,0.97356734,3224.7,3224.1,0.1944]
[1762520513118,0.03876449,3224.6,3223.7,0.4796]
[1762520513442,0.03876449,3224.6,3223.6,0.001]
[1762520513443,0.405504,3224.4,3223.6,0.001]
[1762520513746,0.1665216,3224.3,3223.6,0.001]
[1762520514041,0.5082216,3224.3,3223.6,0.001]
[1762520514205,0.1665216,3224.3,3223.6,0.001]
[1762520514407,0.405504,3224.4,3223.6,0.001]
[1762520514408,1.259712,3224.5,3224.2,0.6641]
[1762520514810,0.97356734,3224.7,3224.2,0.6641]
[1762520515005,1.31526734,3224.7,3223.7,0.4796]
[1762520515522,0.405504,3224.6,3223.7,0.4796]
[1762520516041,1.259712,3224.5,3223.7,0.4796]
[1762520516244,1.259712,3224.5,3223.6,0.001]
[1762520517043,0.89233605,3224.3,3223.6,0.001]
[1762520517206,6.87160472,3223.7,3223.6,0.001]
[1762520517409,8.53682072,3223.7,3223.6,0.001]
[1762520517604,8.87712072,3223.7,3223.6,0.001]
[1762520518044,11.97914634,3223.7,3223.6,0.001]
[1762520518211,1.633512,3223.7,3223.6,0.001]
[1762520518757,1.259712,3223.7,3223.6,0.001]
[1762520518913,1.74665144,3223.7,3223.6,0.001]
[1762520519928,1.259712,3223.7,3223.6,0.001]
[1762520520444,1.466012,3223.7,3223.6,0.001]
[1762520520814,1.4230632,3223.7,3223.6,0.4707]
[1762520521011,1.259712,3223.7,3223.6,0.001]
[1762520521239,1.466012,3223.7,3223.6,0.001]
[1762520521445,1.259712,3223.7,3223.6,0.001]
[1762520522118,1.806312,3223.7,3223.6,0.001]
[1762520522306,1.466012,3223.7,3223.6,0.001]
[1762520522507,1.259712,3223.7,3223.6,0.001]
[1762520522750,1.259712,3223.7,3223.6,0.9503]
[1762520523347,1.259712,3223.7,3223.6,0.4707]
[1762520523650,1.259712,3223.7,3223.6,0.001]
[1762520524228,1.466012,3223.7,3223.6,0.001]
[1762520524432,1.806312,3223.7,3223.6,0.001]
[1762520524712,1.466012,3223.7,3223.6,0.001]